fUSD/lending_fUSD_20240420
["ID","MTS","AMOUNT","RATE_DAILY","PERIOD"]
[322996979,1713580240995,-657.26,0.00015068,2]
[322996980,1713580241005,-500.0,0.00015068,2]
[322996981,1713580241014,-518.46,0.00015068,2]
[322996982,1713580241025,-500.0,0.00015068,2]
[322996983,1713580241035,-872.14,0.00015068,2]
[322996984,1713580241044,-918.04,0.00015068,2]
[322996985,1713580241054,-500.0,0.00015068,2]
[322996986,1713580241063,-928.22,0.00015068,2]
[322996987,1713580241073,-500.0,0.00015068,2]
[322996988,1713580241082,-500.0,0.00015068,2]
[322996989,1713580241092,-334.85488283,0.00015068,2]
[322996990,1713580241102,-500.0,0.00015068,2]
[322996991,1713580241111,-500.0,0.00015068,2]
[322996992,1713580241122,-500.0,0.00015068,2]
[322996993,1713580241131,-988.0,0.00015068,2]
[322996994,1713580241141,-638.4,0.00015068,2]
[322996995,1713580241153,-500.0,0.00015068,2]
[322996996,1713580241162,-500.0,0.00015068,2]
[322996997,1713580241171,-500.0,0.00015068,2]
[322996998,1713580241181,-713.47,0.00015068,2]
[322996999,1713580241191,-500.0,0.00015068,2]
[322997000,1713580241202,-500.0,0.00015068,2]
[322997001,1713580241212,-500.0,0.00015068,2]
[322997002,1713580241222,-500.0,0.00015068,2]
[322997003,1713580241231,-500.0,0.00015068,2]
[322997004,1713580241240,-502.16,0.00015068,2]
[322997005,1713580241250,-500.0,0.00015068,2]
[322997006,1713580241260,-933.55,0.00015068,2]
[322997007,1713580241269,-500.0,0.00015068,2]
[322997008,1713580241279,-797.82,0.00015068,2]
[322997009,1713580241288,-500.0,0.00015068,2]
[322997010,1713580241297,-500.0,0.00015068,2]
[322997011,1713580241307,-340.00303177,0.00015068,2]
[322997012,1713580241318,-500.0,0.00015068,2]
[322997013,1713580241329,-565.21,0.00015068,2]
[322997014,1713580241338,-500.0,0.00015068,2]
[322997015,1713580241347,-500.0,0.00015068,2]
[322997016,1713580241358,-500.0,0.00015068,2]
[322997017,1713580241368,-500.0,0.00015068,2]
[322997018,1713580241377,-536.18,0.00015068,2]
[322997019,1713580241386,-800.08,0.00015068,2]
[322997020,1713580241398,-946.81,0.00015068,2]
[322997021,1713580241409,-500.0,0.00015068,2]
[322997022,1713580241418,-500.0,0.00015068,2]
[322997023,1713580241427,-500.0,0.00015068,2]
[322997024,1713580241437,-805.31,0.00015068,2]
[322997025,1713580241446,-500.0,0.00015068,2]
[322997026,1713580241455,-500.0,0.00015068,2]
[322997027,1713580241464,-500.0,0.00015068,2]
[322997028,1713580241474,-500.0,0.00015068,2]
[322997029,1713580241483,-500.0,0.00015068,2]
[322997030,1713580241493,-500.0,0.00015068,2]
[322997031,1713580241502,-559.34,0.00015068,2]
[322997032,1713580241511,-500.0,0.00015068,2]
[322997033,1713580241521,-500.0,0.00015068,2]
[322997034,1713580241530,-763.33,0.00015068,2]
[322997035,1713580241539,-817.39,0.00015068,2]
[322997036,1713580241548,-500.0,0.00015068,2]
[322997037,1713580241557,-1035.16,0.00015068,2]
[322997038,1713580241566,-1310.11,0.00015068,2]
[322997039,1713580241575,-500.0,0.00015068,2]
[322997040,1713580241584,-510.15,0.00015068,2]
[322997041,1713580241594,-500.0,0.00015068,2]
[322997042,1713580241610,-502.29760301,0.00015068,2]
[322997043,1713580241620,-1240.08,0.00015068,2]
[322997044,1713580241629,-500.0,0.00015068,2]
[322997045,1713580241639,-500.0,0.00015068,2]
[322997046,1713580241650,-596.0,0.00015068,2]
[322997047,1713580241659,-500.0,0.00015068,2]
[322997048,1713580241669,-500.0,0.00015068,2]
[322997049,1713580241678,-500.0,0.00015068,2]
[322997050,1713580241688,-500.0,0.00015068,2]
[322997051,1713580241696,-500.0,0.00015068,2]
[322997052,1713580241706,-635.85,0.00015068,2]
[322997053,1713580241715,-500.0,0.00015068,2]
[322997054,1713580241724,-500.0,0.00015068,2]
[322997055,1713580241733,-601.58,0.00015068,2]
[322997056,1713580241742,-500.0,0.00015068,2]
[322997057,1713580241752,-500.0,0.00015068,2]
[322997058,1713580241761,-500.0,0.00015068,2]
[322997059,1713580241770,-1584.13,0.00015068,2]
[322997060,1713580241779,-500.0,0.00015068,2]
[322997061,1713580241789,-500.0,0.00015068,2]
[322997062,1713580241798,-500.0,0.00015068,2]
[322997063,1713580241807,-500.0,0.00015068,2]
[322997064,1713580241817,-242.56580461,0.00015068,2]
[322997065,1713580241826,-500.0,0.00015068,2]
[322997066,1713580241835,-933.06,0.00015068,2]
[322997067,1713580241848,-500.0,0.00015068,2]
[322997068,1713580241859,-916.25,0.00015068,2]
[322997069,1713580241871,-941.08,0.00015068,2]
[322997070,1713580241881,-500.0,0.00015068,2]
[322997071,1713580241890,-1088.87,0.00015068,2]
[322997073,1713580241902,-500.0,0.00015068,2]
[322997074,1713580241913,-500.0,0.00015068,2]
[322997075,1713580241924,-500.0,0.00015068,2]
[322997076,1713580241933,-627.61,0.00015068,2]
[322997077,1713580241943,-500.0,0.00015068,2]
[322997078,1713580241952,-500.0,0.00015068,2]
[322997079,1713580241962,-589.01,0.00015068,2]
[322997080,1713580241973,-798.73,0.00015068,2]
[322997081,1713580241982,-672.98,0.00015068,2]
[322997082,1713580241992,-510.24,0.00015068,2]
[322997083,1713580242001,-500.0,0.00015068,2]
[322997084,1713580242011,-1031.43,0.00015068,2]
[322997085,1713580242020,-500.0,0.00015068,2]
[322997086,1713580242030,-500.0,0.00015068,2]
[322997087,1713580242039,-500.0,0.00015068,2]
[322997088,1713580242049,-500.0,0.00015068,2]
[322997089,1713580242058,-500.0,0.00015068,2]
[322997090,1713580242068,-724.38,0.00015068,2]
[322997091,1713580242078,-640.38,0.00015068,2]
[322997092,1713580242087,-500.0,0.00015068,2]
[322997093,1713580242097,-500.0,0.00015068,2]
[322997094,1713580242107,-700.29,0.00015068,2]
[322997095,1713580242116,-503.41,0.00015068,2]
[322997096,1713580242125,-500.0,0.00015068,2]
[322997097,1713580242135,-522.35,0.00015068,2]
[322997098,1713580242146,-500.0,0.00015068,2]
[322997099,1713580242155,-688.45,0.00015068,2]
[322997100,1713580242166,-500.0,0.00015068,2]
[322997101,1713580242177,-984.83,0.00015068,2]
[322997102,1713580242187,-790.65,0.00015068,2]
[322997103,1713580242198,-533.05,0.00015068,2]
[322997104,1713580242207,-500.0,0.00015068,2]
[322997105,1713580242217,-500.0,0.00015068,2]
[322997106,1713580242227,-1244.24,0.00015068,2]
[322997107,1713580242238,-500.0,0.00015068,2]
[322997108,1713580242248,-500.0,0.00015068,2]
[322997109,1713580242258,-500.0,0.00015068,2]
[322997110,1713580242270,-531.56,0.00015068,2]
[322997111,1713580242280,-500.0,0.00015068,2]
[322997112,1713580242290,-500.0,0.00015068,2]
[322997113,1713580242300,-500.0,0.00015068,2]
[322997114,1713580242311,-500.0,0.00015068,2]
[322997115,1713580242323,-523.66,0.00015068,2]
[322997116,1713580242333,-500.0,0.00015068,2]
[322997117,1713580242342,-500.0,0.00015068,2]
[322997118,1713580242352,-1524.67,0.00015068,2]
[322997119,1713580242361,-924.98,0.00015068,2]
[322997120,1713580242370,-501.44036394,0.00015068,2]
[322997121,1713580242379,-1000.74,0.00015068,2]
[322997122,1713580242389,-500.0,0.00015068,2]
[322997123,1713580242400,-500.0,0.00015068,2]
[322997124,1713580242410,-878.49,0.00015068,2]
[322997125,1713580242420,-615.56,0.00015068,2]
[322997126,1713580242429,-500.0,0.00015068,2]
[322997127,1713580242439,-500.0,0.00015068,2]
[322997128,1713580242448,-500.0,0.00015068,2]
[322997129,1713580242458,-500.0,0.00015068,2]
[322997130,1713580242468,-1292.12,0.00015068,2]
[322997131,1713580242477,-773.89,0.00015068,2]
[322997132,1713580242487,-839.49,0.00015068,2]
[322997133,1713580242496,-500.0,0.00015068,2]
[322997134,1713580242506,-500.0,0.00015068,2]
[322997135,1713580242515,-691.5,0.00015068,2]
[322997136,1713580242524,-667.03,0.00015068,2]
[322997137,1713580242534,-612.67,0.00015068,2]
[322997138,1713580242544,-500.0,0.00015068,2]
[322997139,1713580242553,-528.47,0.00015068,2]
[322997140,1713580242563,-573.81,0.00015068,2]
[322997141,1713580242573,-500.0,0.00015068,2]
[322997142,1713580242583,-500.0,0.00015068,2]
[322997143,1713580242593,-500.0,0.00015068,2]
[322997144,1713580242602,-500.0,0.00015068,2]
[322997145,1713580242612,-500.0,0.00015068,2]
[322997146,1713580242630,-500.0,0.00015068,2]
[322997147,1713580242640,-500.0,0.00015068,2]
[322997148,1713580242653,-500.0,0.00015068,2]
[322997149,1713580242663,-1376.3,0.00015068,2]
[322997150,1713580242675,-500.0,0.00015068,2]
[322997151,1713580242686,-500.0,0.00015068,2]
[322997152,1713580242696,-500.0,0.00015068,2]
[322997153,1713580242707,-496.75111305,0.00015068,2]
[322997154,1713580242717,-500.0,0.00015068,2]
[322997155,1713580242727,-500.0,0.00015068,2]
[322997156,1713580242738,-500.0,0.00015068,2]
[322997157,1713580242749,-535.92,0.00015068,2]
[322997158,1713580242760,-500.0,0.00015068,2]
[322997159,1713580242770,-535.35,0.00015068,2]
[322997160,1713580242780,-500.0,0.00015068,2]
[322997161,1713580242790,-1859.1,0.00015068,2]
[322997162,1713580242800,-500.0,0.00015068,2]
[322997163,1713580242810,-929.15,0.00015068,2]
[322997164,1713580242820,-500.0,0.00015068,2]
[322997165,1713580242830,-500.0,0.00015068,2]
[322997166,1713580242839,-500.0,0.00015068,2]
[322997167,1713580242849,-500.0,0.00015068,2]
[322997168,1713580242859,-500.0,0.00015068,2]
[322997169,1713580242869,-1388.77,0.00015068,2]
[322997170,1713580242878,-995.75,0.00015068,2]
[322997171,1713580242889,-2407.57,0.00015068,2]
[322997172,1713580242905,-500.0,0.00015068,2]
[322997173,1713580242914,-500.0,0.00015068,2]
[322997174,1713580242924,-639.87,0.00015068,2]
[322997175,1713580242934,-500.0,0.00015068,2]
[322997176,1713580242944,-500.0,0.00015068,2]
[322997177,1713580242955,-500.0,0.00015068,2]
[322997178,1713580242965,-500.0,0.00015068,2]
[322997179,1713580242975,-501.17474714,0.00015068,2]
[322997180,1713580242986,-518.0,0.00015068,2]
[322997181,1713580242997,-2011.53,0.00015068,2]
[322997182,1713580243007,-500.0,0.00015068,2]
[322997183,1713580243018,-500.0,0.00015068,2]
[322997184,1713580243028,-1280.63,0.00015068,2]
[322997185,1713580243038,-542.07,0.00015068,2]
[322997186,1713580243048,-500.0,0.00015068,2]
[322997187,1713580243057,-500.0,0.00015068,2]
[322997189,1713580243067,-973.01,0.00015068,2]
[322997190,1713580243077,-500.0,0.00015068,2]
[322997192,1713580243086,-500.0,0.00015068,2]
[322997193,1713580243095,-500.0,0.00015068,2]
[322997195,1713580243104,-500.0,0.00015068,2]
[322997196,1713580243114,-615.84359144,0.00015068,2]
[322997197,1713580243123,-500.0,0.00015068,2]
[322997198,1713580243132,-500.0,0.00015068,2]
[322997199,1713580243142,-730.99,0.00015068,2]
[322997200,1713580243160,-660.15,0.00015068,2]
[322997201,1713580243169,-500.0,0.00015068,2]
[322997202,1713580243178,-500.0,0.00015068,2]
[322997203,1713580243188,-2195.56,0.00015068,2]
[322997204,1713580243197,-1159.11,0.00015068,2]
[322997205,1713580243207,-828.66,0.00015068,2]
[322997206,1713580243216,-502.6615387,0.00015068,2]
[322997207,1713580243225,-500.0,0.00015068,2]
[322997208,1713580243234,-534.26,0.00015068,2]
[322997209,1713580243244,-962.88,0.00015068,2]
[322997210,1713580243253,-552.633982,0.00015068,2]
[322997211,1713580243262,-500.0,0.00015068,2]
[322997212,1713580243272,-915.85,0.00015068,2]
[322997214,1713580243281,-500.0,0.00015068,2]
[322997216,1713580243291,-1066.03,0.00015068,2]
[322997218,1713580243300,-500.0,0.00015068,2]
[322997220,1713580243310,-500.0,0.00015068,2]
[322997222,1713580243320,-500.0,0.00015068,2]
[322997224,1713580243329,-1753.65,0.00015068,2]
[322997227,1713580243339,-1662.5,0.00015068,2]
[322997230,1713580243349,-500.0,0.00015068,2]
[322997232,1713580243358,-680.87,0.00015068,2]
[322997235,1713580243369,-500.0,0.00015068,2]
[322997238,1713580243379,-500.0,0.00015068,2]
[322997241,1713580243389,-500.0,0.00015068,2]
[322997243,1713580243404,-500.0,0.00015068,2]
[322997244,1713580243414,-500.0,0.00015068,2]
[322997245,1713580243424,-728.03,0.00015068,2]
[322997246,1713580243434,-500.0,0.00015068,2]
[322997247,1713580243444,-1100.04,0.00015068,2]
[322997248,1713580243454,-998.55,0.00015068,2]
[322997249,1713580243464,-500.0,0.00015068,2]
[322997250,1713580243474,-500.0,0.00015068,2]
[322997251,1713580243484,-370.55196083,0.00015068,2]
[322997252,1713580243494,-500.0,0.00015068,2]
[322997253,1713580243504,-841.06,0.00015068,2]
[322997254,1713580243514,-500.0,0.00015068,2]
[322997255,1713580243523,-500.0,0.00015068,2]
[322997256,1713580243533,-500.0,0.00015068,2]
[322997257,1713580243542,-500.0,0.00015068,2]
[322997258,1713580243552,-500.0,0.00015068,2]
[322997259,1713580243562,-886.65,0.00015068,2]
[322997260,1713580243571,-500.0,0.00015068,2]
[322997261,1713580243582,-1473.09,0.00015068,2]
[322997262,1713580243592,-500.0,0.00015068,2]
[322997263,1713580243601,-1479.77,0.00015068,2]
[322997264,1713580243611,-481.16054778,0.00015068,2]
[322997265,1713580243621,-534.25,0.00015068,2]
[322997266,1713580243631,-974.76,0.00015068,2]
[322997267,1713580243640,-500.0,0.00015068,2]
[322997268,1713580243652,-500.0,0.00015068,2]
[322997269,1713580243662,-1323.48,0.00015068,2]
[322997270,1713580243672,-500.0,0.00015068,2]
[322997271,1713580243682,-500.0,0.00015068,2]
[322997272,1713580243691,-1220.78,0.00015068,2]
[322997273,1713580243701,-500.0,0.00015068,2]
[322997274,1713580243711,-500.0,0.00015068,2]
[322997275,1713580243720,-500.0,0.00015068,2]
[322997276,1713580243730,-1323.39,0.00015068,2]
[322997277,1713580243739,-600.37,0.00015068,2]
[322997278,1713580243749,-590.08,0.00015068,2]
[322997279,1713580243759,-500.0,0.00015068,2]
[322997280,1713580243769,-500.0,0.00015068,2]
[322997281,1713580243779,-500.0,0.00015068,2]
[322997282,1713580243789,-500.0,0.00015068,2]
[322997283,1713580243799,-554.81,0.00015068,2]
[322997284,1713580243808,-500.0,0.00015068,2]
[322997285,1713580243819,-500.0,0.00015068,2]
[322997286,1713580243829,-500.0,0.00015068,2]
[322997287,1713580243838,-500.0,0.00015068,2]
[322997288,1713580243848,-500.0,0.00015068,2]
[322997289,1713580243857,-500.0,0.00015068,2]
[322997290,1713580243867,-603.06,0.00015068,2]
[322997291,1713580243877,-500.0,0.00015068,2]
[322997292,1713580243886,-1208.91,0.00015068,2]
[322997293,1713580243898,-500.0,0.00015068,2]
[322997294,1713580243907,-500.0,0.00015068,2]
[322997295,1713580243917,-500.0,0.00015068,2]
[322997296,1713580243926,-736.16,0.00015068,2]
[322997297,1713580243936,-2007.36,0.00015068,2]
[322997298,1713580243945,-500.0,0.00015068,2]
[322997299,1713580243955,-500.0,0.00015068,2]
[322997300,1713580243964,-500.0,0.00015068,2]
[322997301,1713580243974,-500.0,0.00015068,2]
[322997302,1713580243983,-500.0,0.00015068,2]
[322997303,1713580243992,-1682.35,0.00015068,2]
[322997304,1713580244002,-1941.69,0.00015068,2]
[322997305,1713580244011,-500.0,0.00015068,2]
[322997306,1713580244021,-500.0,0.00015068,2]
[322997307,1713580244030,-500.0,0.00015068,2]
[322997308,1713580244040,-500.0,0.00015068,2]
[322997309,1713580244049,-500.0,0.00015068,2]
[322997310,1713580244059,-500.0,0.00015068,2]
[322997311,1713580244069,-622.3,0.00015068,2]
[322997312,1713580244079,-500.0,0.00015068,2]
[322997313,1713580244088,-500.0,0.00015068,2]
[322997314,1713580244098,-500.0,0.00015068,2]
[322997315,1713580244107,-500.0,0.00015068,2]
[322997316,1713580244117,-741.77,0.00015068,2]
[322997317,1713580244126,-500.0,0.00015068,2]
[322997318,1713580244136,-509.15,0.00015068,2]
[322997319,1713580244146,-1214.02,0.00015068,2]
[322997320,1713580244156,-500.0,0.00015068,2]
[322997321,1713580244166,-746.55,0.00015068,2]
[322997322,1713580244175,-1209.12,0.00015068,2]
[322997323,1713580244184,-1659.72,0.00015068,2]
[322997324,1713580244194,-597.4,0.00015068,2]
[322997325,1713580244203,-500.0,0.00015068,2]
[322997326,1713580244213,-698.17,0.00015068,2]
[322997327,1713580244223,-862.19,0.00015068,2]
[322997328,1713580244232,-500.0,0.00015068,2]
[322997329,1713580244241,-500.0,0.00015068,2]
[322997330,1713580244251,-1363.71,0.00015068,2]
[322997331,1713580244260,-784.01,0.00015068,2]
[322997332,1713580244270,-3210.19,0.00015068,2]
[322997333,1713580244279,-500.0,0.00015068,2]
[322997334,1713580244289,-500.0,0.00015068,2]
[322997335,1713580244299,-500.0,0.00015068,2]
[322997336,1713580244310,-500.0,0.00015068,2]
[322997337,1713580244320,-988.32,0.00015068,2]
[322997338,1713580244331,-500.0,0.00015068,2]
[322997339,1713580244341,-1123.76,0.00015068,2]
[322997340,1713580244351,-500.0,0.00015068,2]
[322997341,1713580244361,-1521.83,0.00015068,2]
[322997342,1713580244371,-561.97052709,0.00015068,2]
[322997343,1713580244381,-500.0,0.00015068,2]
[322997344,1713580244653,-500.0,0.00015068,2]
[322997345,1713580244663,-1639.29,0.00015068,2]
[322997346,1713580244672,-500.0,0.00015068,2]
[322997347,1713580244682,-500.0,0.00015068,2]
[322997348,1713580244691,-500.0,0.00015068,2]
[322997349,1713580244701,-500.0,0.00015068,2]
[322997350,1713580244710,-500.0,0.00015068,2]
[322997351,1713580244720,-500.0,0.00015068,2]
[322997352,1713580244729,-500.0,0.00015068,2]
[322997353,1713580244738,-2380.78,0.00015068,2]
[322997354,1713580244748,-581.15,0.00015068,2]
[322997355,1713580244758,-698.11,0.00015068,2]
[322997356,1713580244768,-842.22,0.00015068,2]
[322997357,1713580244777,-500.0,0.00015068,2]
[322997358,1713580244787,-500.0,0.00015068,2]
[322997359,1713580244796,-1849.42,0.00015068,2]
[322997360,1713580244805,-1911.8,0.00015068,2]
[322997361,1713580244815,-761.28,0.00015068,2]
[322997362,1713580244824,-500.0,0.00015068,2]
[322997363,1713580244834,-500.0,0.00015068,2]
[322997364,1713580244843,-1478.08,0.00015068,2]
[322997365,1713580244853,-500.0,0.00015068,2]
[322997366,1713580244862,-789.68,0.00015068,2]
[322997367,1713580244871,-521.84,0.00015068,2]
[322997368,1713580244881,-1837.91,0.00015068,2]
[322997369,1713580244890,-2339.12,0.00015068,2]
[322997370,1713580244902,-602.41,0.00015068,2]
[322997371,1713580244912,-500.0,0.00015068,2]
[322997372,1713580244921,-1282.43,0.00015068,2]
[322997373,1713580244931,-2825.13,0.00015068,2]
[322997374,1713580244941,-2659.93,0.00015068,2]
[322997375,1713580244950,-528.39,0.00015068,2]
[322997376,1713580244960,-785.07,0.00015068,2]
[322997377,1713580244969,-539.63,0.00015068,2]
[322997378,1713580244978,-2550.59,0.00015068,2]
[322997379,1713580244987,-1002.7,0.00015068,2]
[322997380,1713580244997,-1021.52,0.00015068,2]
[322997381,1713580245007,-19324.5,0.00015068,2]
[322997382,1713580245016,-500.0,0.00015068,2]
[322997383,1713580245026,-666.69,0.00015068,2]
[322997384,1713580245035,-566.94,0.00015068,2]
[322997385,1713580245045,-500.0,0.00015068,2]
[322997386,1713580245054,-500.0,0.00015068,2]
[322997387,1713580245064,-500.0,0.00015068,2]
[322997388,1713580245073,-500.0,0.00015068,2]
[322997389,1713580245082,-3444.21,0.00015068,2]
[322997390,1713580245092,-500.0,0.00015068,2]
[322997391,1713580245102,-1534.36,0.00015068,2]
[322997392,1713580245111,-529.02,0.00015068,2]
[322997393,1713580245121,-1668.06,0.00015068,2]
[322997394,1713580245130,-1819.83,0.00015068,2]
[322997395,1713580245140,-1041.79,0.00015068,2]
[322997396,1713580245153,-2275.57,0.00015068,2]
[322997397,1713580245164,-500.0,0.00015068,2]
[322997398,1713580245174,-500.0,0.00015068,2]
[322997399,1713580245184,-500.0,0.00015068,2]
[322997400,1713580245194,-30225.63,0.00015068,2]
[322997401,1713580245204,-500.0,0.00015068,2]
[322997402,1713580245214,-394.32753926,0.00015068,2]
[322997403,1713580245223,-757.55,0.00015068,2]
[322997404,1713580245233,-500.0,0.00015068,2]
[322997405,1713580245242,-4086.61,0.00015068,2]
[322997406,1713580245251,-502.18000384,0.00015068,2]
[322997407,1713580245261,-500.0,0.00015068,2]
[322997408,1713580245270,-500.0,0.00015068,2]
[322997409,1713580245279,-551.1,0.00015068,2]
[322997410,1713580245289,-1151.45,0.00015068,2]
[322997411,1713580245299,-1479.0,0.00015068,2]
[322997412,1713580245310,-1910.78,0.00015068,2]
[322997413,1713580245321,-500.0,0.00015068,2]
[322997414,1713580245331,-3159.75,0.00015068,2]
[322997415,1713580245342,-555.53,0.00015068,2]
[322997416,1713580245351,-500.0,0.00015068,2]
[322997417,1713580245360,-500.0,0.00015068,2]
[322997418,1713580245370,-500.0,0.00015068,2]
[322997419,1713580245380,-2646.33,0.00015068,2]
[322997420,1713580245389,-2315.98,0.00015068,2]
[322997421,1713580245400,-500.0,0.00015068,2]
[322997422,1713580245409,-500.0,0.00015068,2]
[322997423,1713580245419,-1460.46,0.00015068,2]
[322997424,1713580245429,-3806.37,0.00015068,2]
[322997425,1713580245438,-500.0,0.00015068,2]
[322997426,1713580245447,-500.0,0.00015068,2]
[322997427,1713580245457,-607.53,0.00015068,2]
[322997428,1713580245466,-500.0,0.00015068,2]
[322997429,1713580245476,-500.0,0.00015068,2]
[322997430,1713580245486,-301.89558494,0.00015068,2]
[322997431,1713580245495,-500.0,0.00015068,2]
[322997432,1713580245505,-2485.77,0.00015068,2]
[322997433,1713580245515,-500.0,0.00015068,2]
[322997434,1713580245524,-9643.69,0.00015068,2]
[322997435,1713580245534,-741.3,0.00015068,2]
[322997436,1713580245543,-1408.52,0.00015068,2]
[322997437,1713580245553,-1851.06,0.00015068,2]
[322997438,1713580245562,-1113.1,0.00015068,2]
[322997439,1713580245572,-513.08801208,0.00015068,2]
[322997440,1713580245582,-549.79,0.00015068,2]
[322997441,1713580245591,-1899.95,0.00015068,2]
[322997442,1713580245601,-1180.68,0.00015068,2]
[322997443,1713580245611,-1956.01,0.00015068,2]
[322997444,1713580245620,-500.0,0.00015068,2]
[322997445,1713580245631,-500.0,0.00015068,2]
[322997446,1713580245640,-1348.05,0.00015068,2]
[322997447,1713580245651,-2431.79,0.00015068,2]
[322997448,1713580245661,-1198.18,0.00015068,2]
[322997449,1713580245671,-3939.25,0.00015068,2]
[322997450,1713580245680,-3200.59,0.00015068,2]
[322997451,1713580245691,-500.0,0.00015068,2]
[322997452,1713580245701,-500.0,0.00015068,2]
[322997453,1713580245711,-814.7,0.00015068,2]
[322997454,1713580245721,-1039.95,0.00015068,2]
[322997455,1713580245731,-1400.49,0.00015068,2]
[322997456,1713580245742,-1643.43,0.00015068,2]
[322997457,1713580245752,-502.09339773,0.00015068,2]
[322997458,1713580245762,-1560.03,0.00015068,2]
[322997459,1713580245772,-1603.58,0.00015068,2]
[322997460,1713580245782,-500.0,0.00015068,2]
[322997461,1713580245793,-1486.78,0.00015068,2]
[322997462,1713580245804,-580.81,0.00015068,2]
[322997463,1713580245813,-500.0,0.00015068,2]
[322997464,1713580245822,-500.0,0.00015068,2]
[322997465,1713580245831,-500.0,0.00015068,2]
[322997466,1713580245840,-1735.44,0.00015068,2]
[322997467,1713580245851,-7131.77,0.00015068,2]
[322997468,1713580245861,-2721.39,0.00015068,2]
[322997469,1713580245871,-500.0,0.00015068,2]
[322997470,1713580245880,-1677.02,0.00015068,2]
[322997471,1713580245889,-500.0,0.00015068,2]
[322997472,1713580245901,-500.0,0.00015068,2]
[322997473,1713580245910,-785.56,0.00015068,2]
[322997474,1713580245920,-577.43,0.00015068,2]
[322997475,1713580245929,-600.78,0.00015068,2]
[322997476,1713580245939,-27455.56,0.00015068,2]
[322997477,1713580245948,-2371.04,0.00015068,2]
[322997478,1713580245958,-2497.92,0.00015068,2]
[322997479,1713580245967,-616.98,0.00015068,2]
[322997480,1713580245977,-527.77409797,0.00015068,2]
[322997481,1713580245986,-500.0,0.00015068,2]
[322997482,1713580245995,-915.27,0.00015068,2]
[322997483,1713580246005,-500.0,0.00015068,2]
[322997484,1713580246015,-1715.95,0.00015068,2]
[322997485,1713580246027,-6376.75,0.00015068,2]
[322997486,1713580246037,-895.58,0.00015068,2]
[322997487,1713580246047,-2798.07,0.00015068,2]
[322997488,1713580246057,-500.0,0.00015068,2]
[322997489,1713580246066,-500.0,0.00015068,2]
[322997490,1713580246075,-500.0,0.00015068,2]
[322997491,1713580246086,-954.64,0.00015068,2]
[322997492,1713580246095,-531.58,0.00015068,2]
[322997493,1713580246104,-1085.0,0.00015068,2]
[322997494,1713580246113,-598.14,0.00015068,2]
[322997495,1713580246123,-2429.43,0.00015068,2]
[322997496,1713580246132,-2040.48,0.00015068,2]
[322997497,1713580246141,-213.06843198,0.00015068,2]
[322997498,1713580246154,-703.68,0.00015068,2]
[322997500,1713580246164,-501.73,0.00015068,2]
[322997502,1713580246172,-2543.52,0.00015068,2]